bitfinex-derivatives/quotes_SOLF0:USTF0_20250907
["timestamp","ask_amount","ask_price","bid_price","bid_amount"]
[1757284896061,7.67,205.38,205.31,4.32780401]
[1757284896262,7.67,205.38,205.3,0.77]
[1757284896464,7.67,205.38,205.31,4.32783686]
[1757284896659,7.67,205.38,205.3,0.77]
[1757284896864,7.67,205.38,205.31,4.32783686]
[1757284897057,7.67,205.38,205.3,0.77]
[1757284897256,7.67,205.38,205.31,4.32828475]
[1757284897463,7.67,205.38,205.3,0.77]
[1757284897665,7.67,205.38,205.31,4.32804515]
[1757284897965,7.67,205.38,205.3,0.77]
[1757284898365,7.67,205.38,205.31,4.32811333]
[1757284898568,7.67,205.38,205.3,0.77]
[1757284898762,7.67,205.38,205.31,4.32811333]
[1757284898962,7.67,205.38,205.3,0.77]
[1757284899167,7.67,205.38,205.28,2.3494935]
[1757284899465,7.67,205.38,205.29,4.32839807]
[1757284899665,7.67,205.38,205.28,2.3494935]
[1757284899862,7.67,205.38,205.29,4.32857782]
[1757284900063,7.67,205.38,205.28,2.3494935]
[1757284900269,7.67,205.38,205.29,4.32853854]
[1757284900464,7.67,205.38,205.28,2.3494935]
[1757284900664,7.67,205.38,205.29,4.32858117]
[1757284900866,7.67,205.38,205.28,2.3494935]
[1757284901066,7.67,205.38,205.29,4.32858117]
[1757284901266,7.67,205.38,205.28,2.3494935]
[1757284901467,7.67,205.38,205.29,4.32862049]
[1757284901670,7.67,205.38,205.28,2.3494935]
[1757284901869,7.67,205.38,205.29,4.32862049]
[1757284902069,7.67,205.38,205.28,2.3494935]
[1757284902264,7.67,205.38,205.29,4.32849504]
[1757284902471,7.67,205.38,205.28,2.3494935]
[1757284902770,7.67,205.38,205.29,4.32857791]
[1757284902974,7.67,205.38,205.28,2.3494935]
[1757284903268,7.67,205.38,205.29,4.32857791]
[1757284903471,7.67,205.38,205.27,0.77]
[1757284903665,7.67,205.38,205.28,4.32863394]
[1757284903863,7.67,205.38,205.29,4.32863394]
[1757284904067,7.67,205.38,205.3,4.32904689]
[1757284904268,7.67,205.38,205.27,0.77]
[1757284904469,7.67,205.38,205.28,4.3291575]
[1757284904771,7.67,205.38,205.29,4.3291575]
[1757284904966,7.67,205.38,205.3,4.3291575]
[1757284905166,7.67,205.38,205.27,0.77]
[1757284905376,7.67,205.38,205.32,2.3494935]
[1757284905670,7.67,205.38,205.34,0.77]
[1757284905863,7.67,205.38,205.33,0.77]
[1757284906171,7.67,205.38,205.35,0.77]
[1757284908670,7.89,205.43,205.36,0.77]
[1757284908973,7.89,205.47,205.39,0.77]
[1757284909874,7.89,205.47,205.4,4.32248661]
[1757284910170,7.89,205.47,205.39,0.77]
[1757284910476,13.33494486,205.55,205.45,0.77]
[1757284910676,13.33494486,205.55,205.47,2.3494935]
[1757284910877,7.89,205.55,205.47,2.3494935]
[1757284911966,7.89,205.55,205.48,0.77]
[1757284916180,7.89,205.55,205.48,3.1194935]
[1757284916879,7.89,205.55,205.48,0.77]
[1757284917674,7.89,205.55,205.37,4.3818]
[1757284917881,327.4,205.61,205.41,2.3494935]
[1757284917882,7.89,205.53,205.41,2.3494935]
[1757284920575,7.89,205.53,205.44,2.3494935]
[1757284920781,7.89,205.53,205.45,0.77]
[1757284923283,7.89,205.54,205.41,2.3494935]
[1757284923487,7.89,205.54,205.41,3.1194935]
[1757284924283,7.89,205.54,205.42,0.77]
[1757284925084,7.89,205.54,205.45,0.76]
[1757284927086,7.89,205.54,205.44,2.3494935]
[1757284927382,7.86,205.54,205.41,3.1094935]
[1757284932686,7.86,205.54,205.42,0.76]
[1757284932894,7.86,205.54,205.45,2.3494935]
[1757284933087,7.86,205.54,205.45,3.1094935]
[1757284936096,7.86,205.54,205.46,0.76]
[1757284936292,7.86,205.54,205.48,2.3494935]
[1757284936500,7.86,205.54,205.48,3.1094935]
[1757284939395,7.86,205.6,205.48,7.4889935]
[1757284939595,7.86,205.6,205.49,0.76]
[1757284939793,7.86,205.6,205.52,3.1094935]
[1757284940299,7.86,205.6,205.52,7.4880935]
[1757284941002,7.86,205.6,205.55,2.3494935]
[1757284941196,7.86,205.6,205.52,6.7280935]
[1757284941197,7.86,205.6,205.54,0.76]
[1757284941395,7.86,205.6,205.56,0.76]
[1757284941604,7.86,205.64,205.55,2.3494935]
[1757284941900,7.86,205.64,205.56,3.1094935]
[1757284943196,7.86,205.64,205.56,94.26]
[1757284943398,7.86,205.64,205.57,2.3494935]
[1757284948312,7.86,205.64,205.6,1.49930889]
[1757284948612,7.86,205.66,205.6,1.49930889]
[1757284949106,1.49930889,205.65,205.57,1.49930889]
[1757284949412,7.86,205.64,205.57,1.49930889]
[1757284953009,7.86,205.64,205.59,1.49930889]
[1757284953410,8.06,205.72,205.59,1.49930889]
[1757284953411,1.49930889,205.66,205.59,1.49930889]
[1757284953611,7.86,205.65,205.59,1.49930889]
[1757284955006,7.86,205.65,205.6,0.75]
[1757284955213,7.33,205.66,205.61,1.49930889]
[1757284955415,1.49930889,205.68,205.61,1.49930889]
[1757284955416,7.33,205.67,205.61,1.49930889]
[1757284960716,7.33,205.65,205.59,1.49930889]
[1757284963423,7.33,205.65,205.61,1.49930889]
[1757284963624,1.49930889,205.66,205.61,1.49930889]
[1757284964020,7.33,205.65,205.61,1.49930889]
[1757284964822,1.49930889,205.66,205.61,1.49930889]
[1757284965219,7.33,205.65,205.61,1.49930889]
[1757284965417,7.33,205.67,205.61,1.49930889]
[1757284966422,7.33,205.67,205.58,0.75]
[1757284966626,7.33,205.67,205.6,1.49930889]
[1757284977734,7.33,205.7,205.64,1.49930889]
[1757284977934,7.33,205.7,205.66,1.49930889]
[1757284978136,1.49930889,205.71,205.66,1.49930889]
[1757284978335,7.33,205.7,205.66,1.49930889]
[1757284978834,7.33,205.71,205.66,1.49930889]
[1757284979334,1.49930889,205.72,205.63,0.75]
[1757284979536,7.33,205.72,205.67,1.49930889]
[1757284979733,5.44494486,205.73,205.67,1.49930889]
[1757284979930,7.33,205.72,205.67,1.49930889]
[1757284980433,5.44494486,205.73,205.67,1.49930889]
[1757284980834,7.33,205.72,205.67,1.49930889]
[1757284981132,14.27425375,205.74,205.67,1.49930889]
[1757284982142,5.44494486,205.73,205.67,1.49930889]
[1757284982340,7.33,205.72,205.67,1.49930889]
[1757284983143,5.44494486,205.73,205.67,1.49930889]
[1757284983639,7.33,205.72,205.67,1.49930889]
[1757284983844,5.44494486,205.73,205.67,1.49930889]
[1757284984242,7.33,205.72,205.67,1.49930889]
[1757284984442,5.44494486,205.73,205.67,1.49930889]
[1757284984843,7.33,205.72,205.67,1.49930889]
[1757284985043,5.44494486,205.73,205.67,1.49930889]
[1757284985643,7.3,205.72,205.67,1.49930889]
[1757284985842,5.44494486,205.73,205.67,1.49930889]
[1757284986043,7.3,205.72,205.67,1.49930889]
[1757284986440,5.44494486,205.73,205.67,1.49930889]
[1757284987246,7.3,205.72,205.67,1.49930889]
[1757284987440,5.44494486,205.74,205.67,1.49930889]
[1757284987642,7.3,205.73,205.67,1.49930889]
[1757284989354,7.3,205.73,205.71,1.49930889]
[1757284989551,7.3,205.73,205.71,2.24930889]
[1757284990053,7.3,205.75,205.72,0.75]
[1757284990854,7.3,205.75,205.7,1.49930889]
[1757284991049,5.44494486,205.76,205.7,1.49930889]
[1757284991452,7.3,205.76,205.7,1.49930889]
[1757284991652,12.74494486,205.76,205.7,1.49930889]
[1757284991855,7.3,205.75,205.69,0.75]
[1757284992050,7.3,205.75,205.71,0.75]
[1757284992250,7.3,205.76,205.71,1.49930889]
[1757284992557,5.44494486,205.77,205.71,1.49930889]
[1757284992855,7.3,205.76,205.71,1.49930889]
[1757284993250,5.44494486,205.77,205.71,1.49930889]
[1757284993445,7.3,205.76,205.71,1.49930889]
[1757284993651,5.44494486,205.77,205.71,1.49930889]
[1757284993854,7.3,205.76,205.71,1.49930889]
[1757284994151,5.44494486,205.77,205.71,1.49930889]
[1757284994345,7.3,205.76,205.71,1.49930889]
[1757284994546,5.44494486,205.77,205.71,1.49930889]
[1757284994752,7.3,205.76,205.71,1.49930889]
[1757284994951,5.44494486,205.77,205.71,1.49930889]
[1757284995153,7.3,205.76,205.71,1.49930889]
[1757284995355,5.44494486,205.77,205.71,1.49930889]
[1757284995748,7.3,205.76,205.71,1.49930889]
[1757284995948,5.44494486,205.77,205.71,1.49930889]
[1757284996349,7.3,205.76,205.71,1.49930889]
[1757284996552,5.44494486,205.77,205.71,1.49930889]
[1757284996955,7.3,205.77,205.71,1.49930889]
[1757284997260,7.3,205.77,205.72,1.49930889]
[1757284997557,6.94425375,205.78,205.72,1.49930889]
[1757284998660,7.3,205.77,205.72,1.49930889]
[1757285000564,7.3,205.75,205.69,1.49930889]
[1757285001350,1.49930889,205.76,205.68,0.75]
[1757285001351,5.44494486,205.78,205.71,1.49930889]
[1757285001551,1.49930889,205.77,205.71,1.49930889]
[1757285002457,7.3,205.76,205.71,1.49930889]
[1757285003253,1.49930889,205.77,205.71,1.49930889]
[1757285003455,7.3,205.76,205.71,1.49930889]
[1757285003660,1.49930889,205.77,205.71,1.49930889]
[1757285004356,1.49930889,205.75,205.59,0.75]
[1757285004554,7.3,205.72,205.61,0.75]
[1757285004760,7.3,205.7,205.65,1.49930889]
[1757285004958,1.49930889,205.71,205.65,1.49930889]
[1757285005160,7.3,205.73,205.67,1.49930889]
[1757285005463,14.63,205.87,205.69,1.49930889]
[1757285005464,1.49930889,205.75,205.69,1.49930889]
[1757285005962,7.3,205.74,205.69,1.49930889]
[1757285006159,1.49930889,205.75,205.69,1.49930889]
[1757285006563,1.49930889,205.77,205.71,1.49930889]
[1757285007262,5.44494486,205.78,205.71,1.49930889]
[1757285008262,7.3,205.77,205.71,1.49930889]
[1757285010468,7.3,205.77,205.69,4.2901566]
[1757285012766,7.3,205.77,205.69,1.95]
[1757285013070,7.3,205.76,205.67,2.3401566]
[1757285014072,7.3,205.76,205.68,1.96]
[1757285014473,12.74494486,205.76,205.68,1.96]
[1757285014772,12.74494486,205.76,205.67,2.3401566]
[1757285015572,7.3,205.76,205.67,2.3401566]
[1757285015772,7.3,205.76,205.67,4.2901566]
[1757285017274,12.74494486,205.76,205.67,4.2901566]
[1757285017472,7.89,205.74,205.67,4.2901566]
[1757285020271,5.44494486,205.73,205.61,2.3401566]
[1757285020574,7.89,205.71,205.61,2.3401566]
[1757285021275,7.89,205.71,205.62,1.95]
[1757285022273,13.33494486,205.71,205.62,1.95]
[1757285024077,7.89,205.71,205.62,1.95]
[1757285024474,7.89,205.71,205.65,1.95]
[1757285025380,7.89,205.71,205.67,2.3401566]
[1757285025580,5.44494486,205.73,205.67,4.2901566]
[1757285025878,7.89,205.73,205.67,4.2901566]
[1757285030882,7.89,205.73,205.67,2.3401566]
[1757285032183,7.89,205.73,205.6,1.95]
[1757285032184,5.44494486,205.72,205.6,1.95]
[1757285032386,7.89,205.7,205.62,2.3401566]
[1757285032885,13.33494486,205.7,205.6,1.95]
[1757285033081,5.44494486,205.69,205.6,1.95]
[1757285033280,7.89,205.69,205.6,1.95]
[1757285033479,13.33494486,205.69,205.62,2.3401566]
[1757285034285,7.89,205.69,205.62,2.3401566]
[1757285035482,13.33494486,205.69,205.58,2.3401566]
[1757285035685,7.89,205.67,205.58,2.3401566]
[1757285038690,7.89,205.67,205.57,4.2901566]
[1757285044789,7.89,205.67,205.58,2.3401566]
[1757285045993,7.89,205.67,205.57,1.95]
[1757285046199,7.89,205.67,205.58,2.3401566]
[1757285048991,5.44494486,205.66,205.58,2.3401566]
[1757285049197,8.0,205.65,205.58,2.3401566]
[1757285049489,5.44494486,205.66,205.56,446.04]
[1757285049694,8.0,205.65,205.56,446.04]
[1757285050491,5.44494486,205.67,205.56,326.96]
[1757285050795,8.0,205.66,205.56,326.96]
[1757285051098,5.44494486,205.67,205.56,446.04]
[1757285051296,8.0,205.66,205.56,446.04]
[1757285051997,8.0,205.64,205.52,4.3101566]
[1757285052194,8.0,205.61,205.49,4.3101566]
[1757285052787,8.0,205.58,205.49,1.97]
[1757285052994,0.03361084,205.57,205.49,1.97]
[1757285053195,8.0,205.56,205.49,1.97]
[1757285060200,8.03361084,205.57,205.51,4.3101566]
[1757285062099,0.03361084,205.57,205.49,119.12]
[1757285062402,8.0,205.56,205.49,119.12]
[1757285063806,8.0,205.56,205.48,2.3401566]
[1757285064006,8.0,205.56,205.48,121.4601566]
[1757285064301,0.03361084,205.57,205.48,121.4601566]
[1757285064506,8.0,205.56,205.48,121.4601566]
[1757285065006,8.0,205.56,205.48,2.3401566]
[1757285065206,8.0,205.56,205.48,121.4601566]
[1757285065402,8.0,205.56,205.49,1.97]
[1757285066399,8.0,205.56,205.48,121.4601566]
[1757285066602,0.03361084,205.57,205.48,121.4601566]
[1757285066806,8.0,205.56,205.48,121.4601566]
[1757285068804,8.0,205.56,205.48,2.3401566]
[1757285069302,8.0,205.56,205.49,1.97]
[1757285072412,8.0,205.56,205.51,1.50067719]
[1757285072914,0.03361084,205.57,205.51,1.50067719]
[1757285073411,8.0,205.56,205.51,1.50067719]
[1757285073916,0.03361084,205.57,205.51,1.50067719]
[1757285074116,8.0,205.56,205.51,1.50067719]
[1757285074418,0.03361084,205.57,205.51,1.50067719]
[1757285074609,0.03361084,205.57,205.56,1.97]
[1757285074810,8.0,205.66,205.56,1.97]
[1757285075011,8.0,205.71,205.65,1.50067719]
[1757285076113,1.50067719,205.72,205.66,0.03391149]
[1757285076312,7.75,205.71,205.66,0.03391149]
[1757285076517,1.50067719,205.72,205.66,0.03391149]
[1757285077614,7.75,205.71,205.66,0.03391149]
[1757285078918,1.50067719,205.72,205.66,0.03391149]
[1757285079217,7.75,205.71,205.66,0.03391149]
[1757285079418,1.50067719,205.72,205.66,0.03391149]
[1757285079618,7.75,205.71,205.66,0.03391149]
[1757285079820,7.75,205.69,205.66,0.03391149]
[1757285081924,1.50067719,205.7,205.66,0.03391149]
[1757285082123,7.75,205.69,205.66,0.03391149]
[1757285082520,1.50067719,205.7,205.66,0.03391149]
[1757285082720,1.50067719,205.72,205.66,0.03391149]
[1757285082919,7.75,205.71,205.66,0.03391149]
[1757285083222,1.50067719,205.72,205.66,0.03391149]
[1757285083417,7.75,205.71,205.66,0.03391149]
[1757285083621,1.50067719,205.72,205.66,0.03391149]
[1757285083822,7.75,205.71,205.66,0.03391149]
[1757285084420,1.50067719,205.7,205.66,0.03391149]
[1757285085921,7.75,205.69,205.66,0.03391149]
[1757285086118,1.50067719,205.72,205.66,0.03391149]
[1757285086325,7.75,205.71,205.66,0.03391149]
[1757285086525,1.50067719,205.72,205.66,0.03391149]
[1757285087230,7.75,205.71,205.66,0.03391149]
[1757285087423,1.50067719,205.72,205.66,0.03391149]
[1757285087624,7.75,205.71,205.66,0.03391149]
[1757285088326,1.50067719,205.72,205.66,0.03391149]
[1757285088522,7.75,205.71,205.66,0.03391149]
[1757285089727,1.50067719,205.72,205.66,0.03391149]
[1757285090226,1.50067719,205.71,205.66,0.03391149]
[1757285090430,7.75,205.7,205.66,0.03391149]
[1757285090631,1.50067719,205.71,205.66,0.03391149]
[1757285091323,7.75,205.7,205.66,0.03391149]
[1757285092532,1.50067719,205.71,205.66,0.03391149]
[1757285093336,7.75,205.7,205.66,0.03391149]
[1757285093635,1.50067719,205.71,205.66,0.03391149]
[1757285093824,7.75,205.7,205.66,0.03391149]
[1757285094233,1.50067719,205.71,205.66,0.03391149]
[1757285094434,7.75,205.7,205.66,0.03391149]
[1757285095035,1.50067719,205.71,205.66,0.03391149]
[1757285095230,7.75,205.7,205.66,0.03391149]
[1757285095432,1.50067719,205.71,205.66,0.03391149]
[1757285095631,7.75,205.7,205.66,0.03391149]
[1757285096027,1.50067719,205.71,205.66,0.03391149]
[1757285096232,7.75,205.7,205.66,0.03391149]
[1757285096533,1.50067719,205.71,205.66,0.03391149]
[1757285096730,10.66028356,205.84,205.7,68.0547]
[1757285097032,7.75,206.1,205.86,14.63]
[1757285097233,4.52,206.31,206.06,7.66]
[1757285097432,5.88,206.12,206.09,7.66]
[1757285097633,5.88,206.12,206.1,6.07054194]
[1757285097839,5.88,206.11,206.08,1.50067719]
[1757285098033,25.32,206.12,206.09,6.10562748]
[1757285098236,5.88,206.14,206.1,7.57040375]
[1757285098433,25.32,206.14,206.11,6.06972656]
[1757285098737,5.88,206.13,206.12,6.06972656]
[1757285098935,1.50067719,206.18,206.12,6.06972656]
[1757285099136,7.75,206.12,206.04,7.66]
[1757285099339,5.88,206.11,206.08,1.50067719]
[1757285099535,5.88,206.11,206.09,10.68885599]
[1757285099740,25.32,206.11,206.1,10.68885599]
[1757285099936,25.32,206.11,206.1,15.24563245]
[1757285100838,5.88,206.11,206.1,15.24563245]
[1757285101136,17.31,206.25,206.1,15.24563245]
[1757285101137,2.68,206.25,206.1,15.24563245]
[1757285101438,2.68,206.25,206.11,15.24563245]
[1757285101439,5.88,206.14,206.11,15.24563245]
[1757285101639,5.88,206.14,206.12,15.24563245]
[1757285101837,5.88,206.14,206.07,7.66]
[1757285101838,5.88,206.14,206.13,15.27717734]
[1757285102239,3.73116419,206.22,206.13,15.24563245]
[1757285102438,25.32,206.15,206.14,15.24563245]
[1757285102735,25.32,206.16,206.14,15.24563245]
[1757285102939,13.63,206.16,206.15,10.68885599]
[1757285103141,5.88,206.16,206.15,10.68885599]
[1757285103339,25.32,206.16,206.15,15.15132276]
[1757285103645,33.07,206.16,206.15,15.15132276]
[1757285103947,33.07,206.16,206.15,10.68885599]
[1757285104342,33.07,206.16,206.15,6.06945899]
[1757285105241,7.87,206.22,206.15,14.98584152]
[1757285105447,19.44,206.19,206.16,10.42744085]
[1757285105644,27.31,206.19,206.17,6.06945899]
[1757285105846,7.87,206.19,206.12,8.04]
[1757285106043,7.87,206.22,206.15,0.03196659]
[1757285106243,3.73116419,206.23,206.16,9.66151585]
[1757285106445,3.73116419,206.23,206.17,9.53175007]
[1757285106446,7.87,206.18,206.17,9.53175007]
[1757285106645,13.75,206.18,206.17,9.53175007]
[1757285106942,33.19,206.18,206.17,5.10993644]
[1757285107147,33.19,206.18,206.15,0.03196659]
[1757285107344,19.44,206.17,206.15,0.03196659]
[1757285107844,13.75,206.18,206.15,0.03196659]
[1757285108046,19.44,206.17,206.15,0.03196659]
[1757285108541,5.88,206.18,206.15,0.03196659]
[1757285108746,27.31,206.17,206.15,0.03196659]
[1757285109239,7.87,206.17,206.15,0.03196659]
[1757285110842,13.75,206.18,206.15,0.03196659]
[1757285111038,19.44,206.17,206.15,0.03196659]
[1757285111447,13.75,206.18,206.15,0.03196659]
[1757285111651,19.44,206.17,206.15,0.03196659]
[1757285111847,27.31,206.17,206.15,0.03196659]
[1757285112150,7.87,206.17,206.15,0.03196659]
[1757285114145,7.87,206.27,206.15,0.03196659]
[1757285114348,1681.48,206.85,206.15,0.03196659]
[1757285114349,5.88,206.33,206.26,3.73116419]
[1757285114542,13.75,206.35,206.25,8.04]
[1757285114846,13.75,206.35,206.18,67.8963]
[1757285114847,27.31,206.35,206.29,3.73116419]
[1757285115049,7.87,206.4,206.29,3.73116419]
[1757285115349,19.44,206.36,206.28,8.04]
[1757285115538,326.32,206.51,206.16,108.08921995]
[1757285115539,7.87,206.35,206.24,11.77116419]
[1757285115744,7.87,206.37,206.32,0.03645542]
[1757285115944,7.87,206.38,206.24,8.04]
[1757285116140,5.88,206.33,206.15,4.04654421]
[1757285116343,7.87,206.37,206.32,0.03323927]
[1757285116550,7.87,206.37,206.23,8.04]
[1757285116749,19.44,206.31,206.23,8.04]
[1757285117250,19.44,206.31,206.25,0.03525765]
[1757285117446,326.28,206.45,206.26,11.77116419]
[1757285117649,19.44,206.35,206.26,11.77116419]
[1757285118141,7.87,206.39,206.29,8.04]
[1757285118347,5.88,206.38,206.29,11.77116419]
[1757285118543,7.87,206.39,206.29,11.77116419]
[1757285118544,7.87,206.39,206.29,8.04]
[1757285118750,5.88,206.3,206.28,0.03680477]
[1757285118945,33.19,206.3,206.28,0.03680477]
[1757285119250,27.31,206.3,206.24,8.04]
[1757285119456,26.84,206.35,206.27,0.03368508]
[1757285119749,7.87,206.3,206.27,0.03368508]
[1757285119943,7.87,206.29,206.27,0.03368508]
[1757285120141,33.19,206.28,206.27,0.03368508]
[1757285120646,33.19,206.28,206.16,8.04]
[1757285120844,5.88,206.24,206.16,8.04]
[1757285121045,19.44,206.22,206.16,8.04]
[1757285121244,7.87,206.24,206.16,8.04]
[1757285121548,19.44,206.23,206.16,8.04]
[1757285122751,13.75,206.24,206.16,8.04]
[1757285123052,19.44,206.23,206.16,8.04]
[1757285123549,14.63,206.36,206.12,3.73116419]
[1757285123550,7.87,206.36,206.22,8.04]
[1757285123746,25.32,206.32,206.22,8.04]
[1757285124143,5.88,206.32,206.22,8.04]
[1757285124740,25.32,206.32,206.22,8.04]
[1757285126248,5.88,206.32,206.22,8.04]
[1757285126443,7.87,206.36,206.25,8.04]
[1757285126645,7.87,206.42,206.28,8.04]
[1757285126850,5.88,206.35,206.28,8.04]
[1757285127152,25.32,206.35,206.28,8.04]
[1757285127351,7.87,206.42,206.28,8.04]
[1757285127551,19.44,206.36,206.28,8.04]
[1757285127950,7.87,206.42,206.28,8.04]
[1757285128145,5.88,206.37,206.29,4.47893761]
[1757285128352,19.44,206.4,206.34,8.04]
[1757285128648,25.32,206.4,206.34,8.04]
[1757285128852,7.87,206.4,206.28,8.04]
[1757285129054,25.32,206.37,206.29,8.69611015]
[1757285129249,25.32,206.37,206.3,4.47715735]
[1757285129454,7.87,206.4,206.28,8.04]
[1757285129656,25.32,206.37,206.29,4.47820937]
[1757285129954,25.32,206.37,206.3,4.47832183]
[1757285130163,25.32,206.37,206.28,8.04]
[1757285130750,7.87,206.47,206.31,8.04]
[1757285130950,19.44,206.39,206.31,8.04]
[1757285131154,19.44,206.39,206.32,4.47992538]
[1757285131457,19.44,206.39,206.31,8.04]
[1757285131957,19.44,206.39,206.32,4.47992076]
[1757285132158,19.44,206.39,206.31,8.04]
[1757285132355,19.44,206.39,206.32,4.48279747]
[1757285132656,19.44,206.39,206.31,8.04]
[1757285132657,5.88,206.39,206.31,8.04]
[1757285132859,5.88,206.39,206.32,4.482807]
[1757285133061,25.32,206.39,206.31,8.04]
[1757285133358,25.32,206.39,206.32,4.48718467]
[1757285133556,25.32,206.39,206.33,4.48718467]
[1757285133756,25.32,206.39,206.31,8.04]
[1757285133956,25.32,206.39,206.32,4.48665533]
[1757285134159,25.32,206.39,206.33,4.48665533]
[1757285134359,25.32,206.39,206.35,8.04]
[1757285134552,25.32,206.39,206.34,4.48665533]
[1757285134553,25.32,206.39,206.31,8.04]
[1757285134753,25.32,206.39,206.32,8.64621897]
[1757285134962,25.32,206.39,206.33,8.64604918]
[1757285135162,25.32,206.39,206.34,12.27061917]
[1757285135361,25.32,206.39,206.35,4.49061917]
[1757285135659,25.32,206.39,206.34,7.78]
[1757285135860,25.32,206.39,206.35,12.27637267]
[1757285136060,25.32,206.39,206.35,7.78]
[1757285136362,25.32,206.39,206.36,4.5034674]
[1757285136559,25.32,206.39,206.35,7.78]
[1757285136760,19.44,206.38,206.36,4.50314275]
[1757285136963,19.44,206.38,206.35,7.78]
[1757285137259,5.88,206.39,206.36,4.50314275]
[1757285137453,19.44,206.38,206.31,7.78]
[1757285137654,19.44,206.38,206.32,13.45550901]
[1757285137859,19.44,206.38,206.33,16.46910216]
[1757285138063,19.44,206.38,206.34,8.68910216]
[1757285138261,7.64,206.41,206.35,8.68910216]
[1757285138567,7.64,206.48,206.39,7.78]
[1757285138765,7.64,206.48,206.41,7.78]
[1757285138953,5.88,206.46,206.42,13.46231311]
[1757285139160,5.88,206.47,206.43,21.24667315]
[1757285139360,0.1,206.5,206.44,9.28949786]
[1757285139564,0.1,206.5,206.45,21.14400691]
[1757285139759,0.1,206.5,206.46,9.28949786]
[1757285139958,0.1,206.5,206.47,9.28949786]
[1757285140160,0.1,206.5,206.48,9.31354759]
[1757285140359,0.1,206.5,206.49,9.31354759]
[1757285141060,8.22,206.5,206.41,4.04654421]
[1757285141365,7.74,206.5,206.42,4.43865581]
[1757285141563,7.74,206.5,206.35,7.78]
[1757285141766,7.74,206.5,206.36,3.98720758]
[1757285142064,7.74,206.5,206.37,11.76720758]
[1757285142260,7.74,206.5,206.38,3.98720758]
[1757285142465,7.74,206.5,206.39,3.98720758]
[1757285142666,7.74,206.5,206.4,3.98720758]
[1757285142864,7.74,206.5,206.41,3.98720758]
[1757285143164,7.74,206.5,206.42,3.98720758]
[1757285143363,7.74,206.5,206.43,3.95900303]
[1757285143564,7.74,206.5,206.44,3.95900303]
[1757285143868,7.74,206.5,206.45,3.95900303]
[1757285144068,7.74,206.5,206.46,3.95900303]
[1757285144265,7.74,206.5,206.42,7.78]
[1757285144467,7.74,206.5,206.43,3.96000766]
[1757285144668,7.74,206.5,206.44,3.96000766]
[1757285144867,7.74,206.5,206.45,3.96000766]
[1757285145068,7.74,206.5,206.46,3.96000766]
[1757285145264,7.74,206.5,206.42,7.78]
[1757285145469,7.74,206.5,206.43,3.96049764]
[1757285145668,7.74,206.5,206.44,3.96049764]
[1757285145872,7.74,206.5,206.45,3.96049764]
[1757285146167,7.74,206.5,206.42,7.78]
[1757285146371,7.74,206.5,206.43,3.95969998]
[1757285146562,7.74,206.5,206.44,3.95969998]
[1757285146769,7.74,206.5,206.45,11.73969998]
[1757285147068,7.74,206.5,206.45,7.78]
[1757285148266,7.74,206.5,206.46,3.96145006]
[1757285148571,7.74,206.5,206.45,7.78]
[1757285150674,0.1,206.5,206.41,7.78]
[1757285150866,0.1,206.5,206.42,3.9642632]
[1757285151072,0.1,206.5,206.43,3.9642632]
[1757285151269,7.64,206.49,206.44,3.9642632]
[1757285151472,7.64,206.49,206.41,7.78]